[Event "FIDE Chesscom Grand Swiss 2019"]
[Site "Douglas-Isle of Man"]
[Date "2019.10.14"]
[Round "5.27"]
[White "Esipenko, Andrey"]
[Black "Cramling, Pia"]
[Result "1-0"]
[ECO "E11"]
[WhiteElo "2624"]
[BlackElo "2462"]
[Annotator "RC"]
[PlyCount "99"]
[EventDate "2019.10.10"]
[EventType "swiss"]
[EventCountry "GBR"]
[SourceTitle "playchess.com"]
[Source "ChessBase"]
[SourceQuality "1"]
[TimeControl "40/6000+30:20/3000+30:900+30"]

1. d4 {[%emt 0:00:00]} Nf6 {[%emt 0:00:00]} 2. c4 {[%emt 0:00:00]} e6 {[%emt 0:00:00]} 3. g3 {[%emt 0:00:00]} Bb4+ {[%emt 0:03:39]} 4. Bd2 {[%emt 0:02:13]} c5 {[%emt 0:00:07]} 5. Bxb4 {[%emt 0:02:03]} cxb4 {[%emt 0:00:06]} 6. Bg2 {[%emt 0:00:44]} O-O {[%emt 0:00:21]} 7. Nf3 {[%emt 0:01:35]} d6 {[%emt 0:00:29]} 8. O-O {[%emt 0:01:09]} Nc6 {[%emt 0:00:35]} 9. a3 {[%emt 0:01:03]} Bd7 {[%emt 0:07:58]} 10. e3 {[%emt 0:07:07]} a5 {[%emt 0:09:32]} 11. Qe2 {[%emt 0:02:08]} Qb6 {[%emt 0:04:44]} 12. Rd1 {[%emt 0:04:02]} Rfe8 {[%emt 0:13:48]} 13. axb4 {[%emt 0:12:02]} Nxb4 {[%emt 0:01:45]} 14. Nc3 {[%emt 0:05:47]} Qa6 {[%emt 0:07:19]} 15. b3 {[%emt 0:07:23]} Bc6 {[%emt 0:07:52]} 16. e4 {[%emt 0:09:00]} d5 {[%emt 0:07:29]} 17. e5 {[%emt 0:05:48]} Nd7 {[%emt 0:00:18]} 18. Bf1 {[%emt 0:00:26]} b6 {[%emt 0:14:04]} 19. Ng5 {[%emt 0:03:38]} Qb7 {[%emt 0:00:00]} 20. cxd5 {[%emt 0:00:32]} exd5 {[%emt 0:00:00]} 21. Qb2 {[%emt 0:14:52]} f6 {[%emt 0:02:39]} 22. exf6 {[%emt 0:00:20]} Nxf6 {[%emt 0:00:13]} 23. Nf3 {[%emt 0:00:19]} Rac8 {[%emt 0:07:31]} 24. Ne5 {[%emt 0:04:12]} Bd7 {[%emt 0:00:30]} 25. Rac1 {[%emt 0:01:00]} Bf5 {[%emt 0:01:33]} 26. Nb5 {[%emt 0:01:27]} Qb8 {[%emt 0:01:08]} 27. Rxc8 {[%emt 0:05:15]} Rxc8 {[%emt 0:00:07]} 28. Rc1 {[%emt 0:00:45]} h6 {[%emt 0:02:02]} 29. f3 {[%emt 0:01:18]} Rxc1 {[%emt 0:01:29]} 30. Qxc1 {[%emt 0:00:04]} Qc8 {[%emt 0:00:07]} 31. Qe3 {[%emt 0:01:00]} Bd7 {[%emt 0:04:48]} 32. Nc3 {[%emt 0:02:15]} Nc2 {[%emt 0:03:43]} 33. Qd2 {[%emt 0:01:04]} Nb4 {[%emt 0:00:04]} 34. h4 {[%emt 0:03:09]} Bh3 {[%emt 0:03:00]} 35. Bb5 {[%emt 0:00:58]} Bd7 {[%emt 0:00:41]} 36. Bf1 {[%emt 0:02:20]} Bh3 {[%emt 0:00:25]} 37. Be2 {[%emt 0:00:47]} Bf5 {[%emt 0:00:57]} 38. g4 {[%emt 0:00:27]} Bc2 {[%emt 0:00:59]} 39. Bb5 {[%emt 0:03:15]} Qd8 {[%emt 0:04:28]} 40. Ba4 {[%emt 0:05:17]} Nh7 {[%emt 0:01:14]} 41. Qf4 {[%emt 0:17:00]} Qf8 {[%emt 0:08:41]} 42. Qh2 {[%emt 0:03:27]} Qc8 {[%emt 0:12:10]} 43. Bd7 {[%emt 0:01:33]} Qd8 {[%emt 0:13:47]} 44. Be6+ {[%emt 0:02:23]} Kf8 {[%emt 0:00:05]} 45. Qf4+ {[%emt 0:01:14]} Nf6 {[%emt 0:01:03]} 46. g5 {[%emt 0:00:20]} hxg5 {[%emt 0:07:55]} 47. hxg5 {[%emt 0:00:33]} Qe8 {[%emt 0:05:05]} 48. Nd7+ {[%emt 0:06:10]} Ke7 {[%emt 0:00:11]} 49. Nxf6 {[%emt 0:00:41]} Qd8 {[%emt 0:00:36]} 50. Qe5 {[%emt 0:01:33]} 1-0

[Event "FIDE Chesscom Grand Swiss 2019"]
[Site "Douglas-Isle of Man"]
[Date "2019.10.14"]
[Round "5.28"]
[White "Vocaturo, Daniele"]
[Black "Sebag, Marie"]
[Result "1-0"]
[ECO "D12"]
[WhiteElo "2620"]
[BlackElo "2445"]
[Annotator "RC"]
[PlyCount "103"]
[EventDate "2019.10.10"]
[EventType "swiss"]
[EventCountry "GBR"]
[SourceTitle "playchess.com"]
[Source "ChessBase"]
[SourceQuality "1"]
[TimeControl "40/6000+30:20/3000+30:900+30"]

1. d4 {[%emt 0:00:00]} d5 {[%emt 0:00:00]} 2. c4 {[%emt 0:00:07]} c6 {[%emt 0:00:00]} 3. Nf3 {[%emt 0:00:47]} Nf6 {[%emt 0:00:00]} 4. e3 {[%emt 0:00:28]} Bf5 {[%emt 0:00:36]} 5. Nc3 {[%emt 0:00:46]} e6 {[%emt 0:00:39]} 6. Nh4 {[%emt 0:01:06]} Bg6 {[%emt 0:00:32]} 7. Nxg6 {[%emt 0:01:52]} hxg6 {[%emt 0:00:20]} 8. Qb3 {[%emt 0:01:48]} Qc7 {[%emt 0:07:44]} 9. Bd2 {[%emt 0:01:05]} Nbd7 {[%emt 0:03:42]} 10. O-O-O {[%emt 0:05:45]} dxc4 {[%emt 0:08:40]} 11. Bxc4 {[%emt 0:02:29]} b5 {[%emt 0:00:17]} 12. Be2 {[%emt 0:01:44]} a6 {[%emt 0:03:12]} 13. Kb1 {[%emt 0:08:33]} c5 {[%emt 0:06:30]} 14. g4 {[%emt 0:06:06]} Be7 {[%emt 0:29:48]} 15. g5 {[%emt 0:05:09]} Nh5 {[%emt 0:01:49]} 16. d5 {[%emt 0:03:57]} c4 {[%emt 0:02:24]} 17. Qc2 {[%emt 0:00:26]} e5 {[%emt 0:02:27]} 18. Ne4 {[%emt 0:01:32]} Nc5 {[%emt 0:03:51]} 19. Bc3 {[%emt 0:11:04]} Bd6 {[%emt 0:08:08]} 20. Bxe5 {[%emt 0:09:05]} Bxe5 {[%emt 0:02:14]} 21. d6 {[%emt 0:00:06]} Qb6 {[%emt 0:05:24]} 22. Nxc5 {[%emt 0:00:34]} Qxc5 {[%emt 0:00:11]} 23. Qe4 {[%emt 0:01:45]} O-O {[%emt 0:03:12]} 24. Rd5 {[%emt 0:00:14]} Qc6 {[%emt 0:01:47]} 25. Qxe5 {[%emt 0:00:17]} Rae8 {[%emt 0:00:21]} 26. Qd4 {[%emt 0:02:14]} Nf4 {[%emt 0:00:16]} 27. exf4 {[%emt 0:01:56]} Rxe2 {[%emt 0:00:08]} 28. d7 {[%emt 0:02:56]} Rd8 {[%emt 0:00:57]} 29. Rd1 {[%emt 0:00:28]} Re7 {[%emt 0:02:49]} 30. a3 {[%emt 0:02:33]} a5 {[%emt 0:04:23]} 31. Rd6 {[%emt 0:10:08]} Qc7 {[%emt 0:01:56]} 32. f5 {[%emt 0:06:44]} gxf5 {[%emt 0:02:17]} 33. g6 {[%emt 0:00:10]} fxg6 {[%emt 0:04:34]} 34. Qd5+ {[%emt 0:00:13]} Kf8 {[%emt 0:03:06]} 35. Qxb5 {[%emt 0:03:39]} c3 {[%emt 0:00:33]} 36. Rc6 {[%emt 0:03:34]} Qe5 {[%emt 0:00:16]} 37. Qxe5 {[%emt 0:01:29]} Rxe5 {[%emt 0:00:04]} 38. Rxc3 {[%emt 0:01:12]} Ke7 {[%emt 0:01:12]} 39. Rcd3 {[%emt 0:05:47]} a4 {[%emt 0:00:27]} 40. R1d2 {[%emt 0:00:21]} g5 {[%emt 0:01:13]} 41. Rd5 {[%emt 0:53:46]} Re1+ {[%emt 0:50:47]} 42. Rd1 {[%emt 0:03:01]} Ke6 {[%emt 0:00:00]} 43. Rd6+ {[%emt 0:00:00]} Ke5 {[%emt 0:00:00]} 44. Rxe1+ {[%emt 0:00:00]} Kxd6 {[%emt 0:00:00]} 45. Kc2 {[%emt 0:00:00]} Kc7 {[%emt 0:00:00]} 46. Rd1 {[%emt 0:00:00]} Kc6 {[%emt 0:00:00]} 47. Kc3 {[%emt 0:00:00]} Kc5 {[%emt 0:00:00]} 48. h3 {[%emt 0:00:00]} g6 {[%emt 0:00:00]} 49. Rd4 {[%emt 0:00:00]} Kb5 {[%emt 0:00:00]} 50. Rd5+ {[%emt 0:00:00]} Kc6 {[%emt 0:00:00]} 51. Kc4 {[%emt 0:00:00]} Kb6 {[%emt 0:00:00]} 52. Rd6+ {[%emt 0:00:00]} 1-0

[Event "FIDE Chesscom Grand Swiss 2019"]
[Site "Douglas-Isle of Man"]
[Date "2019.10.14"]
[Round "5.29"]
[White "Vovk, Andriy"]
[Black "Ushenina, Anna"]
[Result "1-0"]
[ECO "C42"]
[WhiteElo "2618"]
[BlackElo "2431"]
[Annotator "RC"]
[PlyCount "85"]
[EventDate "2019.10.10"]
[EventType "swiss"]
[EventCountry "GBR"]
[SourceTitle "playchess.com"]
[Source "ChessBase"]
[SourceQuality "1"]
[TimeControl "40/6000+30:20/3000+30:900+30"]

1. e4 {[%emt 0:00:47]} e5 {[%emt 0:00:00]} 2. Nf3 {[%emt 0:00:10]} Nf6 {[%emt 0:00:00]} 3. Nxe5 {[%emt 0:01:21]} d6 {[%emt 0:00:00]} 4. Nf3 {[%emt 0:00:46]} Nxe4 {[%emt 0:00:00]} 5. Nc3 {[%emt 0:01:50]} Nxc3 {[%emt 0:00:00]} 6. dxc3 {[%emt 0:00:07]} Be7 {[%emt 0:00:09]} 7. Be3 {[%emt 0:01:55]} Nc6 {[%emt 0:01:16]} 8. Qd2 {[%emt 0:01:41]} Bf5 {[%emt 0:00:43]} 9. O-O-O {[%emt 0:02:34]} Qd7 {[%emt 0:01:34]} 10. Bc4 {[%emt 0:01:55]} Bf6 {[%emt 0:07:22]} 11. Bg5 {[%emt 0:05:41]} O-O-O {[%emt 0:39:30]} 12. Bxf6 {[%emt 0:02:10]} gxf6 {[%emt 0:00:49]} 13. Nd4 {[%emt 0:05:56]} Ne5 {[%emt 0:03:47]} 14. Be2 {[%emt 0:07:03]} Rhg8 {[%emt 0:05:34]} 15. f4 {[%emt 0:06:16]} Nc6 {[%emt 0:02:49]} 16. Nxf5 {[%emt 0:18:03]} Qxf5 {[%emt 0:00:14]} 17. g3 {[%emt 0:00:21]} d5 {[%emt 0:08:04]} 18. Bf3 {[%emt 0:03:21]} Rd6 {[%emt 0:03:06]} 19. Rhe1 {[%emt 0:01:46]} Rgd8 {[%emt 0:01:04]} 20. Qf2 {[%emt 0:05:28]} Kb8 {[%emt 0:01:05]} 21. Rd3 {[%emt 0:04:04]} a6 {[%emt 0:02:12]} 22. b3 {[%emt 0:02:25]} Qd7 {[%emt 0:07:09]} 23. a3 {[%emt 0:02:26]} Ne7 {[%emt 0:01:39]} 24. Qe2 {[%emt 0:02:58]} Ng8 {[%emt 0:05:59]} 25. Red1 {[%emt 0:00:45]} Ne7 {[%emt 0:06:30]} 26. Bg2 {[%emt 0:00:17]} c6 {[%emt 0:01:19]} 27. Qh5 {[%emt 0:04:09]} Ng6 {[%emt 0:00:24]} 28. c4 {[%emt 0:00:56]} Qc7 {[%emt 0:02:37]} 29. cxd5 {[%emt 0:02:15]} Qa5 {[%emt 0:00:02]} 30. Kb2 {[%emt 0:02:25]} Rc8 {[%emt 0:00:04]} 31. b4 {[%emt 0:07:36]} Qb5 {[%emt 0:00:06]} 32. c4 {[%emt 0:00:27]} Qxc4 {[%emt 0:00:31]} 33. Rc3 {[%emt 0:00:11]} Qb5 {[%emt 0:01:52]} 34. Rc5 {[%emt 0:00:25]} Qb6 {[%emt 0:00:03]} 35. dxc6 {[%emt 0:00:19]} Rxd1 {[%emt 0:00:58]} 36. Qxd1 {[%emt 0:00:08]} Ka7 {[%emt 0:02:45]} 37. Qd7 {[%emt 0:03:28]} Rc7 {[%emt 0:00:27]} 38. Qd8 {[%emt 0:01:48]} bxc6 {[%emt 0:01:46]} 39. Bxc6 {[%emt 0:01:54]} Qb8 {[%emt 0:00:15]} 40. Qd4 {[%emt 0:02:01]} Qb6 {[%emt 0:00:01]} 41. a4 {[%emt 0:51:24]} Rxc6 {[%emt 0:53:05]} 42. Qd7+ {[%emt 0:03:19]} Qb7 {[%emt 0:01:51]} 43. Qxc6 {[%emt 0:00:20]} 1-0

[Event "FIDE Chesscom Grand Swiss 2019"]
[Site "Douglas-Isle of Man"]
[Date "2019.10.14"]
[Round "5.30"]
[White "Jobava, Baadur"]
[Black "Houska, Jovanka"]
[Result "1-0"]
[ECO "D35"]
[WhiteElo "2617"]
[BlackElo "2430"]
[Annotator "RC"]
[PlyCount "89"]
[EventDate "2019.10.10"]
[EventType "swiss"]
[EventCountry "GBR"]
[SourceTitle "playchess.com"]
[Source "ChessBase"]
[SourceQuality "1"]
[TimeControl "40/6000+30:20/3000+30:900+30"]

1. d4 {[%emt 0:00:00]} d5 {[%emt 0:00:00]} 2. c4 {[%emt 0:00:00]} e6 {[%emt 0:00:00]} 3. Nc3 {[%emt 0:00:00]} Nf6 {[%emt 0:00:24]} 4. Bf4 {[%emt 0:00:08]} Bb4 {[%emt 0:09:25]} 5. e3 {[%emt 0:00:38]} O-O {[%emt 0:03:14]} 6. Rc1 {[%emt 0:01:06]} c5 {[%emt 0:08:58]} 7. dxc5 {[%emt 0:01:00]} Ne4 {[%emt 0:05:32]} 8. cxd5 {[%emt 0:02:14]} exd5 {[%emt 0:04:10]} 9. Nge2 {[%emt 0:06:18]} Qh4 {[%emt 0:23:16]} 10. g3 {[%emt 0:06:41]} Qh5 {[%emt 0:00:02]} 11. Bg2 {[%emt 0:00:50]} Bg4 {[%emt 0:11:14]} 12. h3 {[%emt 0:01:03]} Bxc3+ {[%emt 0:02:03]} 13. bxc3 {[%emt 0:00:11]} Bf3 {[%emt 0:00:23]} 14. g4 {[%emt 0:00:43]} Qh4 {[%emt 0:01:57]} 15. O-O {[%emt 0:00:08]} Bxg2 {[%emt 0:01:04]} 16. Kxg2 {[%emt 0:00:09]} Na6 {[%emt 0:02:45]} 17. Nd4 {[%emt 0:06:30]} Qf6 {[%emt 0:04:34]} 18. c6 {[%emt 0:08:08]} bxc6 {[%emt 0:00:25]} 19. c4 {[%emt 0:00:43]} Rac8 {[%emt 0:06:25]} 20. Qe2 {[%emt 0:12:37]} c5 {[%emt 0:06:51]} 21. Nb5 {[%emt 0:03:24]} d4 {[%emt 0:00:49]} 22. a3 {[%emt 0:14:35]} Rcd8 {[%emt 0:05:02]} 23. Rfd1 {[%emt 0:07:10]} g5 {[%emt 0:04:09]} 24. Bh2 {[%emt 0:04:01]} d3 {[%emt 0:01:05]} 25. Qf3 {[%emt 0:00:41]} Qg6 {[%emt 0:03:27]} 26. Qf5 {[%emt 0:01:15]} d2 {[%emt 0:03:41]} 27. Rc2 {[%emt 0:01:08]} Rd3 {[%emt 0:00:05]} 28. Bg1 {[%emt 0:01:25]} Rfd8 {[%emt 0:00:54]} 29. Qxg6+ {[%emt 0:01:00]} hxg6 {[%emt 0:00:23]} 30. f3 {[%emt 0:00:05]} Nf6 {[%emt 0:00:51]} 31. e4 {[%emt 0:01:22]} Ne8 {[%emt 0:00:29]} 32. Nc3 {[%emt 0:01:40]} Nec7 {[%emt 0:01:02]} 33. Nd5 {[%emt 0:00:11]} Ne6 {[%emt 0:00:03]} 34. Rcxd2 {[%emt 0:07:10]} Nf4+ {[%emt 0:00:56]} 35. Kg3 {[%emt 0:00:52]} Ne2+ {[%emt 0:00:36]} 36. Kh2 {[%emt 0:00:24]} Rxd2 {[%emt 0:00:21]} 37. Rxd2 {[%emt 0:00:09]} Nxg1 {[%emt 0:00:20]} 38. Ne7+ {[%emt 0:01:11]} Kg7 {[%emt 0:00:52]} 39. Rxd8 {[%emt 0:00:09]} Nxf3+ {[%emt 0:00:04]} 40. Kg3 {[%emt 0:00:08]} Ne5 {[%emt 0:00:04]} 41. Rg8+ {[%emt 0:52:19]} Kh7 {[%emt 0:51:31]} 42. Ra8 {[%emt 0:02:03]} Nxc4 {[%emt 0:00:00]} 43. Rxa7 {[%emt 0:00:00]} Nb8 {[%emt 0:00:00]} 44. Rb7 {[%emt 0:00:00]} Na6 {[%emt 0:00:00]} 45. Nc6 {[%emt 0:00:00]} 1-0

[Event "FIDE Chesscom Grand Swiss 2019"]
[Site "Douglas-Isle of Man"]
[Date "2019.10.14"]
[Round "5.31"]
[White "Hansen, Eric"]
[Black "Rakotomaharo, Fy Antenaina"]
[Result "1-0"]
[ECO "C93"]
[WhiteElo "2611"]
[BlackElo "2428"]
[Annotator "RC"]
[PlyCount "107"]
[EventDate "2019.10.10"]
[EventType "swiss"]
[EventCountry "GBR"]
[SourceTitle "playchess.com"]
[Source "ChessBase"]
[SourceQuality "1"]
[TimeControl "40/6000+30:20/3000+30:900+30"]

1. e4 {[%emt 0:02:08]} e5 {[%emt 0:00:00]} 2. Nf3 {[%emt 0:00:07]} Nc6 {[%emt 0:00:00]} 3. Bb5 {[%emt 0:01:24]} a6 {[%emt 0:00:00]} 4. Ba4 {[%emt 0:00:07]} Nf6 {[%emt 0:00:00]} 5. O-O {[%emt 0:00:06]} Be7 {[%emt 0:00:01]} 6. Re1 {[%emt 0:00:08]} b5 {[%emt 0:00:05]} 7. Bb3 {[%emt 0:00:05]} d6 {[%emt 0:00:03]} 8. c3 {[%emt 0:01:30]} O-O {[%emt 0:00:07]} 9. h3 {[%emt 0:00:05]} Bb7 {[%emt 0:00:21]} 10. d4 {[%emt 0:10:32]} Re8 {[%emt 0:00:14]} 11. Nbd2 {[%emt 0:00:59]} Bf8 {[%emt 0:00:16]} 12. a3 {[%emt 0:02:01]} h6 {[%emt 0:00:10]} 13. Bc2 {[%emt 0:01:11]} Nb8 {[%emt 0:00:14]} 14. b3 {[%emt 0:04:49]} Nbd7 {[%emt 0:09:15]} 15. Bb2 {[%emt 0:01:26]} g6 {[%emt 0:02:30]} 16. a4 {[%emt 0:00:55]} c5 {[%emt 0:12:46]} 17. d5 {[%emt 0:03:48]} Nh5 {[%emt 0:01:48]} 18. Bd3 {[%emt 0:04:27]} Qb6 {[%emt 0:00:38]} 19. Bf1 {[%emt 0:00:45]} Reb8 {[%emt 0:11:26]} 20. Qc2 {[%emt 0:05:59]} Bg7 {[%emt 0:03:12]} 21. Ra2 {[%emt 0:02:41]} Nf4 {[%emt 0:13:26]} 22. Rea1 {[%emt 0:02:02]} Rf8 {[%emt 0:00:45]} 23. Bc1 {[%emt 0:02:24]} f5 {[%emt 0:12:31]} 24. axb5 {[%emt 0:01:31]} axb5 {[%emt 0:00:30]} 25. Rxa8 {[%emt 0:00:09]} Bxa8 {[%emt 0:00:04]} 26. c4 {[%emt 0:01:59]} fxe4 {[%emt 0:09:03]} 27. Nxe4 {[%emt 0:05:15]} Bb7 {[%emt 0:00:31]} 28. Nfd2 {[%emt 0:06:34]} bxc4 {[%emt 0:08:40]} 29. bxc4 {[%emt 0:12:40]} Bc8 {[%emt 0:00:36]} 30. Ra8 {[%emt 0:02:31]} Ba6 {[%emt 0:03:48]} 31. Rxf8+ {[%emt 0:01:02]} Nxf8 {[%emt 0:00:06]} 32. Qa4 {[%emt 0:00:22]} Kf7 {[%emt 0:02:34]} 33. Ba3 {[%emt 0:01:01]} Bc8 {[%emt 0:02:03]} 34. Qa8 {[%emt 0:00:47]} Bd7 {[%emt 0:02:35]} 35. Qb7 {[%emt 0:01:19]} Qa5 {[%emt 0:00:27]} 36. Bb2 {[%emt 0:03:53]} Kg8 {[%emt 0:06:47]} 37. Bc3 {[%emt 0:07:44]} Qa4 {[%emt 0:06:22]} 38. Qb3 {[%emt 0:00:43]} Qxb3 {[%emt 0:01:02]} 39. Nxb3 {[%emt 0:00:07]} Ba4 {[%emt 0:00:03]} 40. Nbd2 {[%emt 0:01:36]} Bd1 {[%emt 0:00:31]} 41. Nxd6 {[%emt 1:02:15]} Ne2+ {[%emt 0:05:44]} 42. Bxe2 {[%emt 0:00:00]} Bxe2 {[%emt 0:00:04]} 43. f3 {[%emt 0:00:00]} Nd7 {[%emt 0:00:23]} 44. Kf2 {[%emt 0:00:00]} Bd1 {[%emt 0:00:42]} 45. N2e4 {[%emt 0:00:00]} Bf8 {[%emt 0:03:34]} 46. Ke3 {[%emt 0:00:00]} Bc2 {[%emt 0:05:06]} 47. Ba5 {[%emt 0:00:00]} h5 {[%emt 0:01:55]} 48. Kd2 {[%emt 0:00:00]} Bb3 {[%emt 0:01:35]} 49. Kd3 {[%emt 0:00:00]} Be7 {[%emt 0:05:44]} 50. Nb7 {[%emt 0:00:00]} Ba2 {[%emt 0:00:22]} 51. Kc3 {[%emt 0:00:00]} Kg7 {[%emt 0:04:52]} 52. Bc7 {[%emt 0:00:00]} Bb1 {[%emt 0:01:45]} 53. Nd2 {[%emt 0:00:00]} Ba2 {[%emt 0:00:22]} 54. Kb2 {[%emt 0:00:00]} 1-0

[Event "FIDE Chesscom Grand Swiss 2019"]
[Site "Douglas-Isle of Man"]
[Date "2019.10.14"]
[Round "5.32"]
[White "Nihal Sarin"]
[Black "Zatonskih, Anna"]
[Result "1-0"]
[ECO "D58"]
[WhiteElo "2610"]
[BlackElo "2422"]
[Annotator "RC"]
[PlyCount "49"]
[EventDate "2019.10.10"]
[EventType "swiss"]
[EventCountry "GBR"]
[SourceTitle "playchess.com"]
[Source "ChessBase"]
[SourceQuality "1"]
[TimeControl "40/6000+30:20/3000+30:900+30"]

1. Nf3 {[%emt 0:00:00]} d5 {[%emt 0:00:00]} 2. d4 {[%emt 0:00:00]} e6 {[%emt 0:02:06]} 3. c4 {[%emt 0:00:43]} Nf6 {[%emt 0:00:08]} 4. Nc3 {[%emt 0:00:06]} Be7 {[%emt 0:00:08]} 5. Bg5 {[%emt 0:00:16]} h6 {[%emt 0:00:36]} 6. Bxf6 {[%emt 0:00:18]} Bxf6 {[%emt 0:00:03]} 7. e3 {[%emt 0:00:07]} b6 {[%emt 0:14:30]} 8. Qc2 {[%emt 0:07:25]} Bb7 {[%emt 0:05:52]} 9. cxd5 {[%emt 0:04:29]} exd5 {[%emt 0:00:44]} 10. O-O-O {[%emt 0:00:28]} O-O {[%emt 0:16:24]} 11. Kb1 {[%emt 0:09:37]} Nd7 {[%emt 0:08:28]} 12. h4 {[%emt 0:12:17]} c5 {[%emt 0:18:47]} 13. g4 {[%emt 0:01:30]} cxd4 {[%emt 0:00:25]} 14. exd4 {[%emt 0:12:37]} Be7 {[%emt 0:07:01]} 15. g5 {[%emt 0:04:35]} h5 {[%emt 0:01:02]} 16. Bh3 {[%emt 0:09:17]} g6 {[%emt 0:03:55]} 17. Rhe1 {[%emt 0:00:40]} Re8 {[%emt 0:01:12]} 18. Bxd7 {[%emt 0:17:39]} Qxd7 {[%emt 0:02:27]} 19. Ne5 {[%emt 0:00:05]} Qe6 {[%emt 0:05:12]} 20. Nb5 {[%emt 0:02:19]} Bd8 {[%emt 0:08:54]} 21. Nxf7 {[%emt 0:07:51]} Qxe1 {[%emt 0:04:24]} 22. Qxg6+ {[%emt 0:00:26]} Kf8 {[%emt 0:00:01]} 23. Qh6+ {[%emt 0:00:22]} Kg8 {[%emt 0:01:04]} 24. Qh8+ {[%emt 0:00:18]} Kxf7 {[%emt 0:00:06]} 25. Nd6+ {[%emt 0:00:06]} 1-0

[Event "FIDE Chesscom Grand Swiss 2019"]
[Site "Douglas-Isle of Man"]
[Date "2019.10.14"]
[Round "5.33"]
[White "Bulmaga, Irina"]
[Black "Iturrizaga Bonelli, Eduardo"]
[Result "1/2-1/2"]
[ECO "B12"]
[WhiteElo "2442"]
[BlackElo "2629"]
[Annotator "RC"]
[PlyCount "84"]
[EventDate "2019.10.10"]
[EventType "swiss"]
[EventCountry "GBR"]
[SourceTitle "playchess.com"]
[Source "ChessBase"]
[SourceQuality "1"]
[TimeControl "40/6000+30:20/3000+30:900+30"]

1. e4 {[%emt 0:00:00]} c6 {[%emt 0:00:12]} 2. d4 {[%emt 0:00:00]} d5 {[%emt 0:00:15]} 3. e5 {[%emt 0:00:00]} Bf5 {[%emt 0:00:28]} 4. Nf3 {[%emt 0:00:03]} e6 {[%emt 0:00:05]} 5. Be2 {[%emt 0:00:06]} Nd7 {[%emt 0:00:33]} 6. O-O {[%emt 0:00:20]} Bb4 {[%emt 0:00:41]} 7. c3 {[%emt 0:00:43]} Ba5 {[%emt 0:00:06]} 8. Re1 {[%emt 0:00:52]} h6 {[%emt 0:00:37]} 9. Nbd2 {[%emt 0:02:24]} Ne7 {[%emt 0:00:09]} 10. Nf1 {[%emt 0:00:44]} O-O {[%emt 0:00:31]} 11. Ng3 {[%emt 0:00:29]} Bh7 {[%emt 0:00:30]} 12. Qd2 {[%emt 0:02:54]} Qe8 {[%emt 0:03:25]} 13. Bd1 {[%emt 0:08:10]} f6 {[%emt 0:04:36]} 14. exf6 {[%emt 0:05:58]} Rxf6 {[%emt 0:03:17]} 15. a4 {[%emt 0:08:33]} Bc7 {[%emt 0:08:46]} 16. a5 {[%emt 0:01:56]} a6 {[%emt 0:04:27]} 17. Qe2 {[%emt 0:13:00]} Kh8 {[%emt 0:04:33]} 18. b4 {[%emt 0:01:20]} Ng6 {[%emt 0:18:40]} 19. Bc2 {[%emt 0:11:10]} Qf7 {[%emt 0:11:04]} 20. Nh5 {[%emt 0:10:42]} Rxf3 {[%emt 0:04:08]} 21. Qxf3 {[%emt 0:00:07]} Qxf3 {[%emt 0:00:05]} 22. gxf3 {[%emt 0:00:06]} Nh4 {[%emt 0:00:03]} 23. Bd1 {[%emt 0:02:31]} e5 {[%emt 0:00:03]} 24. f4 {[%emt 0:13:23]} e4 {[%emt 0:10:01]} 25. Ng3 {[%emt 0:01:10]} Nf6 {[%emt 0:08:02]} 26. Bd2 {[%emt 0:01:27]} Ng6 {[%emt 0:03:52]} 27. Nh5 {[%emt 0:03:47]} Nxh5 {[%emt 0:04:46]} 28. Bxh5 {[%emt 0:00:02]} Nxf4 {[%emt 0:00:11]} 29. Bxf4 {[%emt 0:05:46]} Bxf4 {[%emt 0:00:17]} 30. Ra2 {[%emt 0:00:20]} Rf8 {[%emt 0:02:03]} 31. Bg4 {[%emt 0:00:44]} Bg6 {[%emt 0:03:41]} 32. Rae2 {[%emt 0:01:20]} Kh7 {[%emt 0:00:25]} 33. Kh1 {[%emt 0:02:14]} Bg5 {[%emt 0:04:56]} 34. Kg1 {[%emt 0:08:43]} Bh4 {[%emt 0:04:02]} 35. Rf1 {[%emt 0:00:54]} Rf4 {[%emt 0:02:26]} 36. Bc8 {[%emt 0:00:56]} Bh5 {[%emt 0:00:06]} 37. Re3 {[%emt 0:00:43]} Rf7 {[%emt 0:00:04]} 38. c4 {[%emt 0:02:50]} Re7 {[%emt 0:04:52]} 39. cxd5 {[%emt 0:01:25]} cxd5 {[%emt 0:00:01]} 40. Rh3 {[%emt 0:01:14]} g5 {[%emt 0:00:11]} 41. Rc3 {[%emt 0:08:03]} Be2 {[%emt 0:00:23]} 42. Re1 {[%emt 0:01:05]} Bb5 {[%emt 0:13:11]} 1/2-1/2

[Event "FIDE Chesscom Grand Swiss 2019"]
[Site "Douglas-Isle of Man"]
[Date "2019.10.14"]
[Round "5.34"]
[White "Henderson de La Fuente, Lance"]
[Black "Atalik, Ekaterina"]
[Result "1-0"]
[ECO "B10"]
[WhiteElo "2494"]
[BlackElo "2464"]
[Annotator "RC"]
[PlyCount "79"]
[EventDate "2019.10.10"]
[EventType "swiss"]
[EventCountry "GBR"]
[SourceTitle "playchess.com"]
[Source "ChessBase"]
[SourceQuality "1"]
[TimeControl "40/6000+30:20/3000+30:900+30"]

1. e4 {[%emt 0:00:00]} c6 {[%emt 0:00:00]} 2. Nf3 {[%emt 0:00:00]} d5 {[%emt 0:00:01]} 3. exd5 {[%emt 0:00:29]} cxd5 {[%emt 0:00:15]} 4. Ne5 {[%emt 0:00:21]} a6 {[%emt 0:02:26]} 5. d4 {[%emt 0:01:26]} Nf6 {[%emt 0:00:33]} 6. Bd3 {[%emt 0:01:04]} g6 {[%emt 0:00:53]} 7. O-O {[%emt 0:02:07]} Bg7 {[%emt 0:00:12]} 8. Nd2 {[%emt 0:02:08]} O-O {[%emt 0:00:42]} 9. c3 {[%emt 0:01:06]} Nbd7 {[%emt 0:04:43]} 10. Ndf3 {[%emt 0:07:07]} Nxe5 {[%emt 0:03:13]} 11. Nxe5 {[%emt 0:00:41]} Nd7 {[%emt 0:03:19]} 12. Nf3 {[%emt 0:01:13]} Nf6 {[%emt 0:02:44]} 13. Re1 {[%emt 0:02:14]} b6 {[%emt 0:09:42]} 14. Bf4 {[%emt 0:03:39]} Bb7 {[%emt 0:03:22]} 15. Qb3 {[%emt 0:04:20]} Nh5 {[%emt 0:06:29]} 16. Bg5 {[%emt 0:01:11]} Re8 {[%emt 0:05:09]} 17. Qc2 {[%emt 0:12:38]} Qd6 {[%emt 0:12:04]} 18. g3 {[%emt 0:07:56]} Bc8 {[%emt 0:21:20]} 19. Ne5 {[%emt 0:04:16]} f6 {[%emt 0:10:55]} 20. g4 {[%emt 0:05:27]} Bxg4 {[%emt 0:04:40]} 21. Nxg4 {[%emt 0:01:05]} fxg5 {[%emt 0:00:06]} 22. Re3 {[%emt 0:01:56]} Nf4 {[%emt 0:01:16]} 23. Rae1 {[%emt 0:00:15]} e6 {[%emt 0:00:45]} 24. a4 {[%emt 0:02:28]} Rf8 {[%emt 0:00:39]} 25. f3 {[%emt 0:01:31]} a5 {[%emt 0:00:49]} 26. Bf1 {[%emt 0:00:40]} Rf5 {[%emt 0:03:04]} 27. Nf2 {[%emt 0:01:43]} Raf8 {[%emt 0:01:19]} 28. Nh3 {[%emt 0:02:40]} e5 {[%emt 0:05:27]} 29. dxe5 {[%emt 0:00:41]} Bxe5 {[%emt 0:00:12]} 30. Nxf4 {[%emt 0:00:28]} Bxf4 {[%emt 0:01:33]} 31. Re6 {[%emt 0:01:33]} Qc5+ {[%emt 0:00:29]} 32. Kh1 {[%emt 0:00:38]} g4 {[%emt 0:01:20]} 33. fxg4 {[%emt 0:03:05]} Bxh2 {[%emt 0:01:43]} 34. Bg2 {[%emt 0:00:32]} Rf2 {[%emt 0:01:38]} 35. R6e2 {[%emt 0:02:27]} Bg3 {[%emt 0:02:03]} 36. Rxf2 {[%emt 0:00:53]} Rxf2 {[%emt 0:01:01]} 37. Re2 {[%emt 0:00:31]} Kg7 {[%emt 0:01:19]} 38. Rxf2 {[%emt 0:01:18]} Bxf2 {[%emt 0:00:07]} 39. Qd2 {[%emt 0:00:27]} Qf8 {[%emt 0:01:15]} 40. Qxd5 {[%emt 0:00:37]} 1-0